[Event "WYCC U18 Open 2019"]
[Site "Mumbai"]
[Date "2019.10.03"]
[Round "3.1"]
[White "Sargsyan, Shant"]
[Black "Aditya Mittal"]
[Result "1/2-1/2"]
[ECO "B51"]
[WhiteElo "2580"]
[BlackElo "2430"]
[Annotator "ChessBase"]
[PlyCount "83"]
[EventDate "2019.10.02"]
[EventType "swiss"]
[EventCountry "IND"]
[SourceTitle "playchess.com"]
[Source "ChessBase"]
[SourceQuality "1"]
[TimeControl "40/5400+30:1800+30"]

1. e4 {[%emt 0:00:40]} c5 {[%emt 0:00:00]} 2. Nf3 {[%emt 0:00:14]} d6 {[%emt 0:00:03]} 3. Bb5+ {[%emt 0:00:36]} Nd7 {[%emt 0:00:06]} 4. Ba4 {[%emt 0:00:23]} Ngf6 {[%emt 0:03:02]} 5. O-O {[%emt 0:01:32]} a6 {[%emt 0:01:11]} 6. c4 {[%emt 0:00:27]} e5 {[%emt 0:01:35]} 7. Nc3 {[%emt 0:00:47]} Be7 {[%emt 0:00:25]} 8. d3 {[%emt 0:01:22]} O-O {[%emt 0:00:13]} 9. h3 {[%emt 0:01:15]} Nb6 {[%emt 0:06:12]} 10. Bc2 {[%emt 0:01:02]} Be6 {[%emt 0:01:59]} 11. a3 {[%emt 0:00:48]} Nbd7 {[%emt 0:03:51]} 12. b4 {[%emt 0:02:13]} b5 {[%emt 0:12:55]} 13. bxc5 {[%emt 0:09:51]} Nxc5 {[%emt 0:01:35]} 14. cxb5 {[%emt 0:01:09]} Qa5 {[%emt 0:02:33]} 15. Bd2 {[%emt 0:00:52]} axb5 {[%emt 0:00:53]} 16. d4 {[%emt 0:06:55]} exd4 {[%emt 0:08:00]} 17. Nxd4 {[%emt 0:09:33]} Qb6 {[%emt 0:03:08]} 18. Re1 {[%emt 0:04:56]} Nd3 {[%emt 0:10:34]} 19. Bxd3 {[%emt 0:03:45]} Qxd4 {[%emt 0:00:03]} 20. Bxb5 {[%emt 0:04:50]} d5 {[%emt 0:06:48]} 21. exd5 {[%emt 0:05:04]} Nxd5 {[%emt 0:00:44]} 22. Nxd5 {[%emt 0:00:18]} Qxd5 {[%emt 0:00:19]} 23. a4 {[%emt 0:00:20]} Bf6 {[%emt 0:13:42]} 24. Rc1 {[%emt 0:00:40]} Qa2 {[%emt 0:01:03]} 25. Rc2 {[%emt 0:04:34]} Qa3 {[%emt 0:01:46]} 26. Qc1 {[%emt 0:01:19]} Qxc1 {[%emt 0:06:55]} 27. Rcxc1 {[%emt 0:00:02]} Rfd8 {[%emt 0:00:32]} 28. Be3 {[%emt 0:01:18]} Bd4 {[%emt 0:01:45]} 29. Red1 {[%emt 0:03:06]} Bxe3 {[%emt 0:01:05]} 30. Rxd8+ {[%emt 0:00:06]} Rxd8 {[%emt 0:00:06]} 31. fxe3 {[%emt 0:00:01]} g6 {[%emt 0:02:57]} 32. Ra1 Rd5 {[%emt 0:04:41]} 33. Bc4 {[%emt 0:07:47]} Ra5 {[%emt 0:00:39]} 34. Bxe6 {[%emt 0:01:06]} fxe6 {[%emt 0:00:03]} 35. Kf2 {[%emt 0:00:37]} Kf7 {[%emt 0:00:06]} 36. e4 {[%emt 0:01:04]} Ke7 {[%emt 0:01:06]} 37. Ke3 {[%emt 0:00:32]} Kd6 {[%emt 0:01:08]} 38. Kd4 {[%emt 0:00:11]} h5 {[%emt 0:01:19]} 39. g3 {[%emt 0:03:23]} g5 {[%emt 0:00:52]} 40. e5+ {[%emt 0:01:52]} Ke7 {[%emt 0:02:59]} 41. Ke4 {[%emt 0:31:26]} Ke8 {[%emt 0:30:21]} 42. Ra3 {[%emt 0:06:16]} 1/2-1/2

[Event "WYCC U18 Open 2019"]
[Site "Mumbai"]
[Date "2019.10.03"]
[Round "3.3"]
[White "Gholami, Aryan"]
[Black "Mendonca, Leon Luke"]
[Result "1-0"]
[ECO "A46"]
[WhiteElo "2554"]
[BlackElo "2388"]
[Annotator "ChessBase"]
[PlyCount "75"]
[EventDate "2019.10.02"]
[EventType "swiss"]
[EventCountry "IND"]
[SourceTitle "playchess.com"]
[Source "ChessBase"]
[SourceQuality "1"]
[TimeControl "40/5400+30:1800+30"]

1. d4 {[%emt 0:00:00]} Nf6 {[%emt 0:00:00]} 2. Nf3 {[%emt 0:00:00]} e6 {[%emt 0:00:14]} 3. Bf4 {[%emt 0:00:00]} b6 {[%emt 0:00:21]} 4. e3 {[%emt 0:00:00]} Bb7 {[%emt 0:00:26]} 5. Nbd2 {[%emt 0:00:07]} Be7 {[%emt 0:00:49]} 6. h3 {[%emt 0:00:08]} O-O {[%emt 0:01:16]} 7. Bd3 {[%emt 0:00:08]} c5 {[%emt 0:05:28]} 8. c3 {[%emt 0:00:08]} cxd4 {[%emt 0:17:49]} 9. exd4 {[%emt 0:00:56]} Ba6 {[%emt 0:04:09]} 10. Bxa6 {[%emt 0:02:03]} Nxa6 {[%emt 0:00:02]} 11. Qe2 {[%emt 0:00:10]} Nb8 {[%emt 0:02:53]} 12. O-O {[%emt 0:00:24]} d5 {[%emt 0:03:22]} 13. Ne5 {[%emt 0:00:33]} Nfd7 {[%emt 0:15:50]} 14. Ndf3 {[%emt 0:01:08]} Qc8 {[%emt 0:04:04]} 15. Rac1 {[%emt 0:15:49]} Nxe5 {[%emt 0:13:49]} 16. Nxe5 {[%emt 0:00:15]} Nd7 {[%emt 0:03:53]} 17. c4 {[%emt 0:00:05]} Nxe5 {[%emt 0:00:52]} 18. Bxe5 {[%emt 0:00:43]} Qc6 {[%emt 0:06:22]} 19. cxd5 {[%emt 0:08:00]} Qxd5 {[%emt 0:00:02]} 20. Rc7 {[%emt 0:03:12]} Bd6 {[%emt 0:04:16]} 21. Rd7 {[%emt 0:00:20]} Rfd8 {[%emt 0:08:39]} 22. Qg4 {[%emt 0:00:07]} g6 {[%emt 0:00:34]} 23. Rxd6 {[%emt 0:00:08]} Rxd6 {[%emt 0:00:19]} 24. Qf4 {[%emt 0:00:06]} Rdd8 {[%emt 0:02:03]} 25. Qf6 {[%emt 0:00:37]} Kf8 {[%emt 0:00:46]} 26. Rc1 {[%emt 0:03:46]} Rd7 {[%emt 0:01:36]} 27. Rc3 {[%emt 0:02:35]} Ke8 {[%emt 0:01:11]} 28. Qh8+ {[%emt 0:01:33]} Ke7 {[%emt 0:00:03]} 29. Qxh7 {[%emt 0:00:23]} Qe4 {[%emt 0:02:43]} 30. Qg7 {[%emt 0:02:22]} Qd5 {[%emt 0:00:32]} 31. h4 {[%emt 0:13:46]} a5 {[%emt 0:00:27]} 32. h5 {[%emt 0:00:57]} Qe4 {[%emt 0:00:23]} 33. h6 {[%emt 0:00:20]} Qe1+ {[%emt 0:00:38]} 34. Kh2 {[%emt 0:00:08]} Qxf2 {[%emt 0:00:25]} 35. h7 {[%emt 0:00:48]} Rxd4 {[%emt 0:00:36]} 36. Bxd4 {[%emt 0:00:55]} Qh4+ {[%emt 0:00:02]} 37. Rh3 {[%emt 0:00:08]} Qf4+ {[%emt 0:00:06]} 38. Kh1 {[%emt 0:00:06]} 1-0

[Event "WYCC U18 Open 2019"]
[Site "Mumbai"]
[Date "2019.10.03"]
[Round "3.6"]
[White "Garidmagnai, Byambasuren"]
[Black "Zarubitski, Viachaslau"]
[Result "1/2-1/2"]
[ECO "D10"]
[WhiteElo "2327"]
[BlackElo "2435"]
[Annotator "NA"]
[PlyCount "91"]
[EventDate "2019.10.02"]
[EventType "swiss"]
[EventCountry "IND"]
[SourceTitle "playchess.com"]
[Source "ChessBase"]
[SourceQuality "1"]
[TimeControl "40/5400+30:1800+30"]

1. d4 {[%emt 0:00:00]} d5 {[%emt 0:00:00]} 2. c4 {[%emt 0:00:00]} c6 {[%emt 0:00:00]} 3. Nc3 {[%emt 0:00:00]} dxc4 {[%emt 0:00:00]} 4. a4 {[%emt 0:02:00]} e5 {[%emt 0:00:00]} 5. dxe5 {[%emt 0:11:06]} Qxd1+ {[%emt 0:00:00]} 6. Kxd1 {[%emt 0:00:22]} Be6 {[%emt 0:00:00]} 7. e4 {[%emt 0:08:31]} Bc5 {[%emt 0:03:25]} 8. f4 {[%emt 0:02:39]} g6 {[%emt 0:00:58]} 9. Ke2 {[%emt 0:09:10]} Na6 {[%emt 0:04:33]} 10. Be3 {[%emt 0:00:35]} O-O-O {[%emt 0:01:21]} 11. Nf3 {[%emt 0:02:49]} f6 {[%emt 0:14:42]} 12. h3 {[%emt 0:08:08]} Rd3 {[%emt 0:39:21]} 13. Bxc5 {[%emt 0:03:26]} Nxc5 {[%emt 0:00:00]} 14. Rd1 {[%emt 0:02:08]} fxe5 {[%emt 0:11:25]} 15. Nxe5 {[%emt 0:01:27]} Rxd1 {[%emt 0:00:34]} 16. Kxd1 {[%emt 0:00:07]} Nf6 {[%emt 0:00:04]} 17. Bxc4 {[%emt 0:00:34]} Bxc4 {[%emt 0:01:20]} 18. Nxc4 {[%emt 0:00:04]} Rd8+ {[%emt 0:04:19]} 19. Kc2 {[%emt 0:00:15]} Rd4 {[%emt 0:01:18]} 20. b3 {[%emt 0:05:08]} Nfxe4 {[%emt 0:00:47]} 21. Nxe4 {[%emt 0:00:09]} Nxe4 {[%emt 0:00:08]} 22. Rd1 {[%emt 0:02:51]} Rxd1 {[%emt 0:00:03]} 23. Kxd1 {[%emt 0:00:04]} Kc7 {[%emt 0:01:31]} 24. Kc2 {[%emt 0:00:37]} b5 {[%emt 0:00:28]} 25. axb5 {[%emt 0:00:37]} cxb5 {[%emt 0:00:01]} 26. Ne3 {[%emt 0:01:31]} a5 {[%emt 0:03:16]} 27. Kd3 {[%emt 0:02:57]} Nc5+ {[%emt 0:00:07]} 28. Kc3 {[%emt 0:00:04]} Kc6 {[%emt 0:00:43]} 29. Ng4 {[%emt 0:01:37]} Nd7 {[%emt 0:08:25]} 30. Kd4 {[%emt 0:00:35]} Kd6 {[%emt 0:00:08]} 31. Ne3 {[%emt 0:04:15]} Nc5 {[%emt 0:00:52]} 32. Kc3 {[%emt 0:00:12]} Ne4+ {[%emt 0:00:24]} 33. Kd4 {[%emt 0:00:30]} Nc5 {[%emt 0:00:01]} 34. Kc3 {[%emt 0:00:05]} Ne6 {[%emt 0:01:26]} 35. g3 {[%emt 0:02:57]} Kc5 {[%emt 0:01:35]} 36. f5 {[%emt 0:02:14]} gxf5 {[%emt 0:00:09]} 37. Nxf5 {[%emt 0:00:04]} Kd5 {[%emt 0:00:52]} 38. Ne7+ {[%emt 0:01:50]} Ke4 {[%emt 0:00:18]} 39. Nc6 {[%emt 0:00:24]} a4 {[%emt 0:00:06]} 40. bxa4 {[%emt 0:00:16]} bxa4 {[%emt 0:00:01]} 41. Kb4 {[%emt 0:32:02]} Kf3 {[%emt 0:30:17]} 42. g4 {[%emt 0:00:18]} Kg3 {[%emt 0:02:30]} 43. Ne5 {[%emt 0:00:21]} Ng5 {[%emt 0:00:00]} 44. Nd7 {[%emt 0:00:00]} Ne4 {[%emt 0:00:00]} 45. g5 {[%emt 0:00:00]} Nxg5 {[%emt 0:00:00]} 46. Nf6 {[%emt 0:00:00]} 1/2-1/2

[Event "WYCC U18 Open 2019"]
[Site "Mumbai"]
[Date "2019.10.03"]
[Round "3.10"]
[White "Rahul Srivatshav P"]
[Black "Beukema, Jasper"]
[Result "1-0"]
[ECO "A08"]
[WhiteElo "2460"]
[BlackElo "2265"]
[Annotator "RC"]
[PlyCount "89"]
[EventDate "2019.10.02"]
[EventType "swiss"]
[EventCountry "IND"]
[SourceTitle "playchess.com"]
[Source "ChessBase"]
[SourceQuality "1"]
[TimeControl "40/5400+30:1800+30"]

1. Nf3 {[%emt 0:00:00]} d5 {[%emt 0:00:00]} 2. g3 {[%emt 0:00:35]} c5 {[%emt 0:00:00]} 3. Bg2 {[%emt 0:00:12]} Nc6 {[%emt 0:00:00]} 4. O-O {[%emt 0:01:41]} Nf6 {[%emt 0:00:31]} 5. d3 {[%emt 0:00:24]} g6 {[%emt 0:00:39]} 6. Nbd2 {[%emt 0:00:32]} Bg7 {[%emt 0:00:28]} 7. e4 {[%emt 0:00:06]} O-O {[%emt 0:00:28]} 8. Re1 {[%emt 0:00:22]} e5 {[%emt 0:05:48]} 9. exd5 {[%emt 0:03:41]} Nxd5 {[%emt 0:00:10]} 10. Nc4 {[%emt 0:00:26]} Re8 {[%emt 0:00:52]} 11. Bd2 {[%emt 0:11:37]} Rb8 {[%emt 0:02:08]} 12. Ng5 {[%emt 0:02:59]} b5 {[%emt 0:04:58]} 13. Qf3 {[%emt 0:05:35]} Be6 {[%emt 0:16:39]} 14. Nxe6 {[%emt 0:00:39]} fxe6 {[%emt 0:00:06]} 15. Ne3 {[%emt 0:00:13]} Nd4 {[%emt 0:00:18]} 16. Qd1 {[%emt 0:00:13]} Qd6 {[%emt 0:01:46]} 17. a4 {[%emt 0:01:24]} b4 {[%emt 0:00:58]} 18. Nc4 {[%emt 0:06:01]} Qc7 {[%emt 0:01:05]} 19. h4 {[%emt 0:00:51]} Rf8 {[%emt 0:05:19]} 20. Be4 {[%emt 0:02:59]} Nf6 {[%emt 0:01:55]} 21. c3 {[%emt 0:11:26]} Nxe4 {[%emt 0:04:14]} 22. Rxe4 {[%emt 0:00:04]} Nf3+ {[%emt 0:00:35]} 23. Kg2 {[%emt 0:00:44]} Rbd8 {[%emt 0:02:00]} 24. Be3 {[%emt 0:00:30]} Rf7 {[%emt 0:07:59]} 25. cxb4 {[%emt 0:07:14]} cxb4 {[%emt 0:01:02]} 26. Rc1 {[%emt 0:00:14]} Qb7 {[%emt 0:03:45]} 27. Na5 {[%emt 0:02:37]} Qxe4 {[%emt 0:14:28]} 28. dxe4 {[%emt 0:00:30]} Rxd1 {[%emt 0:00:30]} 29. Rxd1 {[%emt 0:00:00]} Nd4 {[%emt 0:00:15]} 30. Rc1 {[%emt 0:00:37]} Rd7 {[%emt 0:02:42]} 31. Rc4 {[%emt 0:03:11]} Bf8 {[%emt 0:09:30]} 32. Bd2 {[%emt 0:03:16]} b3 {[%emt 0:05:17]} 33. Rc8 {[%emt 0:00:07]} Kf7 {[%emt 0:00:44]} 34. Nc4 {[%emt 0:00:11]} Bd6 {[%emt 0:05:03]} 35. Bc3 {[%emt 0:00:20]} Bc7 {[%emt 0:03:10]} 36. Rxc7 {[%emt 0:01:31]} Rxc7 {[%emt 0:00:02]} 37. Nxe5+ {[%emt 0:00:05]} Ke8 {[%emt 0:00:32]} 38. Bxd4 {[%emt 0:00:07]} a6 {[%emt 0:00:08]} 39. Kf3 {[%emt 0:00:17]} Rc1 {[%emt 0:00:44]} 40. Nd3 {[%emt 0:00:29]} Rc4 {[%emt 0:01:50]} 41. Ke3 {[%emt 0:30:38]} Ke7 {[%emt 0:30:32]} 42. a5 {[%emt 0:01:21]} Kd6 {[%emt 0:00:29]} 43. Bc3 {[%emt 0:00:05]} Kc7 {[%emt 0:00:37]} 44. f3 {[%emt 0:00:12]} e5 {[%emt 0:00:48]} 45. Kd2 {[%emt 0:00:20]} 1-0

[Event "WYCC U18 Open 2019"]
[Site "Mumbai"]
[Date "2019.10.03"]
[Round "3.14"]
[White "Panesar Vedant"]
[Black "Raghunandan, Kaumandur Srihari"]
[Result "0-1"]
[ECO "B90"]
[WhiteElo "2219"]
[BlackElo "2449"]
[Annotator "NA"]
[PlyCount "138"]
[EventDate "2019.10.02"]
[EventType "swiss"]
[EventCountry "IND"]
[SourceTitle "playchess.com"]
[Source "ChessBase"]
[SourceQuality "1"]
[TimeControl "40/5400+30:1800+30"]

1. e4 {[%emt 0:00:00]} c5 {[%emt 0:00:00]} 2. Nf3 {[%emt 0:00:00]} d6 {[%emt 0:00:00]} 3. d4 {[%emt 0:00:00]} cxd4 {[%emt 0:00:00]} 4. Nxd4 {[%emt 0:00:00]} Nf6 {[%emt 0:00:00]} 5. Nc3 {[%emt 0:00:00]} a6 {[%emt 0:00:00]} 6. Be3 {[%emt 0:00:00]} e6 {[%emt 0:01:04]} 7. f3 {[%emt 0:00:00]} b5 {[%emt 0:00:22]} 8. Qd2 {[%emt 0:00:58]} h5 {[%emt 0:00:18]} 9. O-O-O {[%emt 0:02:02]} Bb7 {[%emt 0:00:38]} 10. Kb1 {[%emt 0:16:17]} Nbd7 {[%emt 0:00:10]} 11. Bd3 {[%emt 0:03:31]} Rc8 {[%emt 0:02:27]} 12. Rhe1 {[%emt 0:02:33]} Be7 {[%emt 0:03:01]} 13. h3 {[%emt 0:09:11]} b4 {[%emt 0:13:31]} 14. Nce2 {[%emt 0:02:08]} d5 {[%emt 0:04:26]} 15. exd5 {[%emt 0:00:27]} Nxd5 {[%emt 0:00:08]} 16. Nf4 {[%emt 0:21:22]} Nc5 {[%emt 0:05:02]} 17. Bc4 {[%emt 0:12:23]} Nxf4 {[%emt 0:32:23]} 18. Bxf4 {[%emt 0:00:13]} O-O {[%emt 0:00:16]} 19. Be5 {[%emt 0:05:29]} Qb6 {[%emt 0:04:27]} 20. Qf4 {[%emt 0:05:59]} Rfd8 {[%emt 0:02:17]} 21. Qg3 {[%emt 0:00:58]} Bf8 {[%emt 0:00:31]} 22. Bf6 {[%emt 0:06:23]} Rd7 {[%emt 0:02:08]} 23. Nb3 {[%emt 0:00:42]} Rxd1+ {[%emt 0:04:14]} 24. Rxd1 {[%emt 0:00:05]} Nxb3 {[%emt 0:04:50]} 25. axb3 {[%emt 0:00:02]} Bd5 {[%emt 0:00:39]} 26. Bd3 {[%emt 0:04:19]} Bb7 {[%emt 0:04:05]} 27. Re1 {[%emt 0:02:17]} Rc5 {[%emt 0:02:55]} 28. Bd4 {[%emt 0:01:39]} Qc7 {[%emt 0:00:16]} 29. Be5 {[%emt 0:00:01]} Qd8 {[%emt 0:01:57]} 30. h4 {[%emt 0:01:38]} Rd5 {[%emt 0:02:23]} 31. Qf2 {[%emt 0:01:12]} Bc6 {[%emt 0:03:00]} 32. g4 {[%emt 0:01:21]} Rxd3 {[%emt 0:03:09]} 33. cxd3 {[%emt 0:00:04]} Qxd3+ {[%emt 0:00:20]} 34. Qc2 Qxf3 {[%emt 0:00:09]} 35. gxh5 {[%emt 0:00:18]} Bb5 {[%emt 0:02:44]} 36. Ka1 {[%emt 0:00:02]} Bd3 {[%emt 0:03:13]} 37. Qc7 {[%emt 0:00:49]} Qd5 {[%emt 0:00:48]} 38. Rg1 {[%emt 0:03:19]} Qxb3 {[%emt 0:00:23]} 39. Qa5 {[%emt 0:00:01]} Bc4 {[%emt 0:00:37]} 40. h6 {[%emt 0:00:37]} g6 {[%emt 0:00:33]} 41. h5 {[%emt 0:31:38]} g5 {[%emt 0:13:23]} 42. Rxg5+ {[%emt 0:00:00]} Kh7 {[%emt 0:00:09]} 43. Rg1 {[%emt 0:00:00]} Bxh6 {[%emt 0:03:11]} 44. Bd4 {[%emt 0:00:00]} Bf4 {[%emt 0:04:59]} 45. Rg7+ {[%emt 0:00:00]} Kh6 {[%emt 0:00:08]} 46. Rg1 {[%emt 0:00:00]} f5 {[%emt 0:00:48]} 47. Bg7+ {[%emt 0:00:00]} Kxh5 {[%emt 0:01:48]} 48. Kb1 {[%emt 0:00:00]} Be3 {[%emt 0:01:18]} 49. Rh1+ {[%emt 0:00:00]} Kg4 {[%emt 0:02:26]} 50. Bf8 {[%emt 0:00:00]} Bd3+ {[%emt 0:05:20]} 51. Ka1 {[%emt 0:00:00]} Bb6 {[%emt 0:01:38]} 52. Qxb4+ {[%emt 0:00:00]} Qxb4 {[%emt 0:00:02]} 53. Bxb4 {[%emt 0:00:00]} f4 {[%emt 0:00:33]} 54. Be1 {[%emt 0:00:35]} e5 {[%emt 0:00:33]} 55. Rh4+ {[%emt 0:02:33]} Kf3 {[%emt 0:01:01]} 56. Bc3 {[%emt 0:01:13]} Bd4 {[%emt 0:00:18]} 57. Bb4 {[%emt 0:01:32]} Kg3 {[%emt 0:00:35]} 58. Rh8 {[%emt 0:02:37]} f3 {[%emt 0:00:27]} 59. Rg8+ {[%emt 0:00:27]} Kf2 {[%emt 0:00:20]} 60. Be7 {[%emt 0:00:34]} Ke2 {[%emt 0:00:28]} 61. Bh4 {[%emt 0:00:29]} f2 {[%emt 0:00:22]} 62. Bxf2 {[%emt 0:00:01]} Bxf2 {[%emt 0:00:14]} 63. Re8 {[%emt 0:00:21]} e4 {[%emt 0:00:05]} 64. b4 {[%emt 0:00:00]} Kd2 {[%emt 0:00:41]} 65. Kb2 {[%emt 0:00:17]} Bd4+ {[%emt 0:00:19]} 66. Kb3 {[%emt 0:00:01]} e3 {[%emt 0:00:08]} 67. Rg8 {[%emt 0:01:01]} e2 {[%emt 0:00:11]} 68. Rg2 {[%emt 0:00:02]} Kd1 {[%emt 0:00:10]} 69. Rg3 {[%emt 0:00:18]} Bc2+ 0-1